bitfinex-derivatives/quotes_BTCF0:USTF0_20241208
["timestamp","ask_amount","ask_price","bid_price","bid_amount"]
[1733651803894,0.0021237,98827.0,98826.0,0.05382619]
[1733651804095,0.0021237,98827.0,98826.0,0.05698757]
[1733651804294,0.0021237,98827.0,98826.0,0.05382617]
[1733651804805,0.001,98838.0,98826.0,0.8158136]
[1733651805008,0.08987227,98839.0,98837.0,0.3611504]
[1733651805210,0.08987227,98843.0,98842.0,0.045493]
[1733651805507,0.00039,98848.0,98843.0,0.045492]
[1733651805508,0.08987227,98844.0,98843.0,0.045492]
[1733651805701,0.00039,98848.0,98845.0,0.045491]
[1733651805702,0.08987227,98846.0,98845.0,0.045491]
[1733651805911,0.08987227,98846.0,98845.0,0.06003265]
[1733651806205,0.08987227,98848.0,98847.0,0.04549]
[1733651806402,0.045488,98852.0,98847.0,0.01454165]
[1733651806598,0.045488,98852.0,98848.0,0.01454165]
[1733651806804,0.045488,98852.0,98849.0,0.01454165]
[1733651806998,0.045488,98852.0,98850.0,0.01454165]
[1733651807203,0.045488,98852.0,98851.0,0.01454164]
[1733651807406,0.00010016,98858.0,98854.0,0.045487]
[1733651807713,0.406286,98856.0,98855.0,0.00821962]
[1733651809098,0.406286,98856.0,98855.0,0.00921962]
[1733651809099,0.412286,98856.0,98855.0,0.00921962]
[1733651809601,0.415286,98856.0,98855.0,0.00921962]
[1733651809908,0.415286,98856.0,98855.0,0.00416139]
[1733651810101,1.915286,98856.0,98855.0,0.00416139]
[1733651810504,0.415286,98856.0,98855.0,0.00416139]
[1733651812208,0.53502522,98856.0,98855.0,0.00416139]
[1733651812810,0.415286,98856.0,98855.0,0.001]
[1733651813108,0.415286,98856.0,98839.0,0.00035036]
[1733651813109,0.045491,98845.0,98839.0,0.00035036]
[1733651813309,0.045492,98844.0,98843.0,0.045492]
[1733651813507,0.045492,98844.0,98843.0,0.05181474]
[1733651814311,0.1352984,98844.0,98843.0,0.0521651]
[1733651814613,0.045492,98844.0,98843.0,0.05216578]
[1733651814911,0.045492,98844.0,98843.0,0.0521656]
[1733651815106,0.045492,98844.0,98843.0,0.05181474]
[1733651815305,0.046492,98844.0,98843.0,0.05181474]
[1733651816211,0.046492,98844.0,98843.0,0.06437479]
[1733651816514,0.19640756,98844.0,98843.0,0.06437474]
[1733651817211,0.09566186,98844.0,98843.0,0.06437474]
[1733651817611,0.09566186,98844.0,98824.0,0.0101]
[1733651817819,0.09566186,98844.0,98823.0,0.01991802]
[1733651817820,0.0899889,98831.0,98823.0,0.01991802]
[1733651818113,0.1199852,98835.0,98823.0,0.01991802]
[1733651818313,0.1199852,98835.0,98834.0,0.045496]
[1733651819107,0.1199852,98836.0,98835.0,0.045496]
[1733651819828,0.045493,98841.0,98826.0,0.37042655]
[1733651820003,0.12000254,98835.0,98834.0,0.045496]
[1733651820506,0.12000254,98835.0,98834.0,0.047496]
[1733651820708,0.11999568,98835.0,98834.0,0.002]
[1733651820909,0.11999568,98835.0,98834.0,0.047496]
[1733651821211,0.11999568,98836.0,98834.0,0.005]
[1733651821514,0.11999568,98836.0,98835.0,0.045496]
[1733651821905,0.1499815,98842.0,98835.0,0.045496]
[1733651821906,0.11999568,98837.0,98836.0,0.045495]
[1733651822113,0.045492,98843.0,98836.0,0.045495]
[1733651822709,0.04549,98847.0,98836.0,0.045495]
[1733651822912,0.04549,98847.0,98846.0,0.045491]
[1733651822913,0.40629,98847.0,98846.0,0.045491]
[1733651823105,0.40629,98847.0,98846.0,0.05054892]
[1733651823416,0.3608,98847.0,98846.0,0.05054892]
[1733651823621,0.11999568,98852.0,98846.0,0.00505792]
[1733651823808,0.3608,98856.0,98852.0,0.045488]
[1733651824006,0.3608,98856.0,98838.0,0.031]
[1733651824007,0.3608,98856.0,98853.0,0.05054492]
[1733651824213,0.12009584,98858.0,98854.0,0.36585792]
[1733651824214,0.00010016,98858.0,98854.0,0.36585792]
[1733651824403,0.00010016,98858.0,98855.0,0.00505792]
[1733651824613,0.00010016,98858.0,98854.0,0.3608]
[1733651824614,0.00010016,98858.0,98857.0,0.045486]
[1733651824817,0.00010016,98858.0,98857.0,0.05054392]
[1733651825216,0.00010016,98858.0,98857.0,0.05370494]
[1733651825407,0.11999568,98872.0,98857.0,0.05370494]
[1733651825408,0.11999568,98872.0,98871.0,0.045479]
[1733651825608,0.11999568,98872.0,98871.0,0.06001945]
[1733651825805,0.00095,98877.0,98876.0,0.045477]
[1733651826010,0.00095,98877.0,98876.0,0.06001745]
[1733651826414,0.00095,98877.0,98876.0,0.06014229]
[1733651827021,0.00095,98877.0,98876.0,0.01466529]
[1733651827225,0.00395,98877.0,98876.0,0.01466529]
[1733651828419,0.00895,98877.0,98876.0,0.01466529]
[1733651828914,0.00795,98877.0,98876.0,0.01466529]
[1733651829714,0.00795,98877.0,98876.0,0.02718115]
[1733651831516,0.00795,98877.0,98876.0,0.02716438]
[1733651833124,0.3608,98894.0,98887.0,0.045472]
[1733651833321,0.3608,98894.0,98891.0,0.04547]
[1733651833517,0.3608,98894.0,98892.0,0.07250854]
[1733651833718,0.3608,98894.0,98893.0,0.02703954]
[1733651834121,8.048e-05,98899.0,98893.0,0.02703954]
[1733651834422,8.048e-05,98899.0,98896.0,0.045468]
[1733651834619,8.048e-05,98899.0,98897.0,0.02703216]
[1733651834812,8.048e-05,98899.0,98896.0,0.045468]
[1733651835015,8.048e-05,98899.0,98897.0,0.02703147]
[1733651835217,8.048e-05,98899.0,98898.0,0.00947869]
[1733651835417,8.048e-05,98899.0,98898.0,0.02703626]
[1733651835826,0.00908048,98899.0,98898.0,0.02703626]
[1733651836716,0.01508048,98899.0,98898.0,0.02803626]
[1733651837427,0.00708048,98899.0,98898.0,0.001]
[1733651837723,0.00708048,98899.0,98896.0,0.045467]
[1733651838025,0.00608048,98899.0,98896.0,0.045467]
[1733651838825,0.00608048,98899.0,98898.0,0.045467]
[1733651839623,0.00508048,98899.0,98898.0,0.045467]
[1733651841425,0.00208048,98899.0,98898.0,0.045467]
[1733651841625,0.00608048,98899.0,98898.0,0.045467]
[1733651842117,4.8e-07,98899.0,98898.0,0.05552124]
[1733651842314,4.8e-07,98899.0,98898.0,0.06499781]
[1733651842514,0.11999568,98920.0,98916.0,0.045459]
[1733651842724,0.11999568,98923.0,98913.0,0.3608]
[1733651843025,0.0331,98936.0,98930.0,0.045452]
[1733651843026,0.11999568,98932.0,98930.0,0.045452]
[1733651843214,0.0331,98936.0,98934.0,0.04545]
[1733651843215,9.291e-05,98935.0,98934.0,0.04545]
[1733651844921,9.291e-05,98935.0,98934.0,0.04645]
[1733651844922,0.00209291,98935.0,98934.0,0.04645]
[1733651845324,0.00209291,98935.0,98934.0,0.05276621]
[1733651845817,0.00809291,98935.0,98934.0,0.05376621]
[1733651846627,0.00709291,98935.0,98934.0,0.05276621]
[1733651846924,0.00709291,98935.0,98934.0,0.05321335]
[1733651847111,0.00709291,98935.0,98934.0,0.05286477]
[1733651847316,0.00509291,98935.0,98934.0,0.05691748]
[1733651847520,0.00709291,98935.0,98934.0,0.05791748]
[1733651847922,0.00509291,98935.0,98934.0,0.05691748]
[1733651848120,0.002,98935.0,98934.0,0.05691748]
[1733651848321,0.005,98935.0,98934.0,0.05691748]
[1733651848516,0.00197499,98935.0,98934.0,0.05691748]
[1733651849338,0.00197499,98935.0,98934.0,0.06007521]
[1733651849722,0.00197499,98935.0,98934.0,0.36007521]
[1733651849923,0.00213,98944.0,98943.0,0.045446]
[1733651850124,0.00213,98944.0,98943.0,0.42077265]
[1733651850529,0.00011878,98958.0,98943.0,0.43024484]
[1733651850826,0.00011878,98958.0,98957.0,0.04544]
[1733651851028,0.00011878,98958.0,98957.0,0.05996665]
[1733651851432,0.00011878,98958.0,98957.0,0.059963]
[1733651851634,0.00011878,98958.0,98957.0,0.014523]
[1733651851833,0.00011878,98958.0,98957.0,0.01452321]
[1733651852219,0.00011878,98958.0,98952.0,0.01003387]
[1733651852525,0.00011878,98958.0,98943.0,0.3618]
[1733651852725,0.00411878,98958.0,98956.0,0.04544]
[1733651852928,0.00411878,98958.0,98951.0,0.3608]
[1733651853127,0.00411878,98958.0,98956.0,0.04544]
[1733651853432,0.045446,98945.0,98943.0,0.00052]
[1733651853632,0.4257,98944.0,98936.0,0.045449]
[1733651853824,0.11932958,98943.0,98931.0,0.3608]
[1733651854026,0.0649,98944.0,98931.0,0.3608]
[1733651854326,0.0649,98944.0,98943.0,0.045446]
[1733651854637,0.0333,98944.0,98943.0,0.045446]
[1733651855528,0.0363,98944.0,98943.0,0.045446]
[1733651856735,0.0383,98944.0,98943.0,0.046446]
[1733651857729,0.0383,98944.0,98943.0,0.001]
[1733651857931,0.0383,98944.0,98943.0,0.046446]
[1733651859024,0.0383,98944.0,98932.0,0.045451]
[1733651859222,0.0383,98944.0,98923.0,0.00151624]
[1733651859223,0.045455,98924.0,98923.0,0.00151624]
[1733651859425,0.406255,98924.0,98923.0,0.00151624]
[1733651859828,0.52571785,98924.0,98923.0,0.00151624]
[1733651860027,0.406255,98924.0,98923.0,0.00151624]
[1733651860335,0.3618,98924.0,98923.0,0.05340658]
[1733651860726,0.001,98924.0,98923.0,0.05340658]
[1733651862429,0.001,98924.0,98923.0,0.05846018]
[1733651862632,0.3608,98935.0,98923.0,0.02248081]
[1733651862833,0.3608,98935.0,98933.0,0.045451]
[1733651863038,0.3608,98935.0,98924.0,0.02084712]
[1733651863039,0.033,98939.0,98934.0,0.01137149]
[1733651863242,0.033,98939.0,98937.0,0.045449]
[1733651863431,0.0319,98942.0,98941.0,0.045447]
[1733651863627,0.033,98953.0,98941.0,0.01137149]
[1733651863943,0.033,98953.0,98944.0,0.3608]
[1733651864241,0.07724,98957.0,98945.0,0.01137149]
[1733651864242,0.0318,98957.0,98945.0,0.01137149]
[1733651864535,0.0318,98957.0,98944.0,0.3608]
[1733651864536,0.00011878,98958.0,98956.0,0.04544]
[1733651864726,0.00011878,98958.0,98957.0,0.01452929]
[1733651864929,0.00011878,98958.0,98956.0,0.04544]
[1733651865234,0.00011878,98958.0,98941.0,0.001]
[1733651865235,0.045447,98942.0,98941.0,0.001]
[1733651865436,0.3608,98942.0,98923.0,0.00163369]
[1733651865635,0.045454,98926.0,98924.0,0.00947416]
[1733651865836,0.045454,98926.0,98923.0,0.00163369]
[1733651865837,0.045454,98927.0,98923.0,0.00163369]
[1733651866639,0.16515362,98927.0,98923.0,0.00163369]
[1733651866839,0.3608,98924.0,98923.0,0.00163369]
[1733651867362,0.11969962,98925.0,98924.0,0.045455]
[1733651867539,0.51042418,98933.0,98924.0,0.045455]
[1733651867540,0.11969962,98928.0,98926.0,0.045454]
[1733651867941,0.11969962,98930.0,98929.0,0.045453]
[1733651868245,0.3608,98933.0,98923.0,0.00163369]
[1733651868438,0.11987518,98932.0,98924.0,0.00947562]
[1733651868648,0.11987518,98932.0,98931.0,0.045452]
[1733651868939,0.3608,98933.0,98931.0,0.045452]
[1733651869336,0.3608,98933.0,98932.0,0.00947553]
[1733651869547,0.033,98936.0,98934.0,0.04545]
[1733651869740,0.18262418,98936.0,98934.0,0.04545]
[1733651870146,0.033,98936.0,98934.0,0.04545]
[1733651870351,0.04912576,98935.0,98934.0,0.04545]
[1733651870532,0.14996709,98935.0,98934.0,0.04545]
[1733651870840,0.18296709,98936.0,98934.0,0.04545]
[1733651871242,0.033,98936.0,98934.0,0.04545]
[1733651871442,0.04912482,98935.0,98934.0,0.04545]
[1733651871637,0.15003679,98935.0,98934.0,0.04545]
[1733651871842,0.15203679,98935.0,98934.0,0.04545]
[1733651872037,0.002,98935.0,98934.0,0.05492547]
[1733651872235,0.05112573,98935.0,98934.0,0.05492547]
[1733651873042,0.05112573,98935.0,98934.0,0.06124237]
[1733651873249,0.05312573,98935.0,98934.0,0.0517669]
[1733651873451,0.05312573,98935.0,98934.0,0.0063169]
[1733651875351,0.05312573,98935.0,98934.0,0.01137063]
[1733651877149,0.05312573,98935.0,98934.0,0.01452923]
[1733651877649,0.045451,98933.0,98930.0,0.045452]
[1733651877849,0.3608,98931.0,98930.0,0.045452]
[1733651878637,0.51083385,98931.0,98930.0,0.045452]
[1733651878845,0.3380581,98931.0,98930.0,0.045452]
[1733651879545,0.3835101,98931.0,98930.0,0.045452]
[1733651879948,0.3835101,98931.0,98923.0,0.00163369]
[1733651879949,0.045455,98924.0,98923.0,0.00163369]
[1733651880144,0.045455,98924.0,98923.0,0.00011745]
[1733651880145,0.09458658,98924.0,98923.0,0.00011745]
[1733651880447,0.045459,98917.0,98916.0,0.045459]
[1733651880651,0.455391,98917.0,98916.0,0.045459]
[1733651881245,0.455391,98917.0,98916.0,0.04555927]
[1733651881953,0.409932,98917.0,98916.0,0.04555927]
[1733651882544,0.409932,98917.0,98916.0,0.0459573]
[1733651883055,0.409932,98917.0,98916.0,0.04555927]
[1733651883355,0.411932,98917.0,98916.0,0.04555927]
[1733651883646,0.051132,98917.0,98916.0,0.04555927]
[1733651884147,0.002,98917.0,98916.0,0.04555927]
[1733651884652,0.15210572,98917.0,98916.0,0.04555927]
[1733651884945,0.002,98917.0,98916.0,0.04555927]
[1733651885148,0.05113668,98917.0,98916.0,0.04555927]
[1733651885450,0.55837952,98917.0,98916.0,0.00010027]
[1733651885649,0.45739482,98917.0,98916.0,0.00641866]
[1733651886746,0.45739482,98917.0,98916.0,0.10641866]
[1733651887253,0.45739482,98917.0,98916.0,0.10010027]
[1733651887448,0.45739482,98917.0,98916.0,0.10641868]
[1733651887652,0.45739482,98917.0,98916.0,0.11147344]
[1733651887854,0.55837545,98917.0,98916.0,0.11147344]
[1733651888046,0.408258,98917.0,98916.0,0.10515503]
[1733651888457,0.45739487,98917.0,98916.0,0.11147351]
[1733651889255,0.45739487,98917.0,98916.0,0.10515503]
[1733651889456,0.45739487,98917.0,98916.0,0.11147348]
[1733651889655,0.45739487,98917.0,98916.0,0.11463276]
[1733651891054,0.45739487,98917.0,98916.0,0.16009176]
[1733651891547,0.45739405,98917.0,98916.0,0.16009176]
[1733651891850,0.45739199,98917.0,98916.0,0.16009176]
[1733651892244,0.408258,98917.0,98916.0,0.16009176]
[1733651892550,0.45739369,98917.0,98916.0,0.11463276]
[1733651894245,0.408258,98917.0,98916.0,0.11463276]
[1733651894749,0.3128,98917.0,98916.0,0.11463276]
[1733651895252,0.43295019,98917.0,98916.0,0.11463276]
[1733651895957,0.12015019,98919.0,98917.0,0.045458]
[1733651896152,0.12015019,98919.0,98918.0,0.01453249]
[1733651896559,0.12015019,98919.0,98918.0,0.05999049]
[1733651896753,0.045452,98931.0,98918.0,0.01453249]
[1733651896754,0.12015019,98921.0,98918.0,0.01453249]
[1733651896951,0.12015019,98921.0,98920.0,0.045457]
[1733651897149,0.15015352,98930.0,98924.0,0.045455]
[1733651897364,0.19560552,98930.0,98926.0,0.045454]
[1733651897552,0.15015352,98929.0,98927.0,0.01453249]
[1733651897760,0.15015352,98929.0,98928.0,0.01453249]
[1733651898054,0.045452,98930.0,98928.0,0.01453249]
[1733651898259,0.19560552,98930.0,98929.0,0.01453249]
[1733651899553,0.19760552,98930.0,98929.0,0.01453249]
[1733651899759,0.20160552,98930.0,98929.0,0.01453249]
[1733651899955,0.051452,98930.0,98929.0,0.01453249]
[1733651900361,0.20167392,98930.0,98929.0,0.01453249]
[1733651900659,0.20167392,98930.0,98927.0,0.076453]
[1733651900963,0.20167392,98930.0,98928.0,0.01452981]
[1733651901157,0.20167392,98930.0,98929.0,0.01452981]
[1733651902156,0.050452,98930.0,98929.0,0.01452981]
[1733651902370,0.20068903,98930.0,98929.0,0.01452981]
[1733651902759,0.09958124,98930.0,98929.0,0.01452981]
[1733651902959,0.10058124,98930.0,98929.0,0.01452981]
[1733651903269,0.10058092,98930.0,98929.0,0.01452981]
[1733651903763,0.051452,98930.0,98929.0,0.01452981]
[1733651904268,0.051452,98930.0,98929.0,0.05998302]
[1733651904883,0.15624956,98930.0,98929.0,0.05998302]
[1733651905065,0.1562501,98930.0,98929.0,0.06038146]
[1733651905263,0.0551276,98930.0,98927.0,0.02790738]
[1733651905467,0.0551276,98930.0,98928.0,0.045453]
[1733651905468,0.0491276,98929.0,98928.0,0.045453]
[1733651906767,0.0531276,98929.0,98928.0,0.045453]
[1733651906969,0.05312683,98929.0,98928.0,0.045453]
[1733651907157,0.05312683,98929.0,98928.0,0.04585147]
[1733651907354,0.05312683,98929.0,98928.0,0.145453]
[1733651907959,0.005,98929.0,98928.0,0.145453]
[1733651908760,0.3709,98954.0,98928.0,0.18744935]
[1733651908761,8.7e-07,98930.0,98928.0,0.18744935]
[1733651908963,0.0101,98954.0,98928.0,0.18744935]
[1733651908964,0.15028552,98942.0,98930.0,0.045452]
[1733651909163,0.01021878,98958.0,98943.0,0.045446]
[1733651909164,0.15028552,98946.0,98943.0,0.045446]
[1733651909370,0.15028552,98954.0,98953.0,0.045442]
[1733651909673,0.15023162,98954.0,98947.0,0.00039818]
[1733651909866,0.15023162,98954.0,98951.0,0.045442]
[1733651910071,0.15023162,98955.0,98945.0,0.00039818]
[1733651910258,0.15023162,98955.0,98954.0,0.045441]
[1733651910460,0.15023162,98957.0,98954.0,0.045441]
[1733651910860,0.1957894,98958.0,98955.0,0.04544]
[1733651911067,0.1957894,98958.0,98943.0,0.046446]
[1733651911369,0.1957894,98958.0,98956.0,0.04544]
[1733651911673,0.04555778,98958.0,98956.0,0.04544]
[1733651911972,0.005,98957.0,98956.0,0.04544]
[1733651912672,0.00011878,98958.0,98956.0,0.04544]
[1733651912866,0.00611878,98958.0,98956.0,0.04544]
[1733651913769,0.00611878,98958.0,98957.0,0.04544]
[1733651914161,0.00011878,98958.0,98957.0,0.04544]
[1733651915167,0.00611878,98958.0,98957.0,0.04544]
[1733651915360,0.00611878,98958.0,98957.0,0.05049235]
[1733651916773,0.00611878,98958.0,98957.0,0.05149235]
[1733651917177,0.00611878,98958.0,98957.0,0.05149234]
[1733651917469,0.00611878,98958.0,98957.0,0.05465005]
[1733651917768,0.00611878,98958.0,98957.0,0.06096547]
[1733651921268,0.00611878,98958.0,98957.0,0.05591317]
[1733651921472,0.00611878,98958.0,98957.0,0.06096553]
[1733651923461,0.00611878,98958.0,98957.0,0.01552553]
[1733651923462,0.05155778,98958.0,98957.0,0.01552553]
[1733651923669,0.05155778,98958.0,98957.0,0.00921008]
[1733651923870,0.05155778,98958.0,98957.0,0.00415772]
[1733651924072,0.05523504,98958.0,98957.0,0.005053]
[1733651924272,0.10067404,98958.0,98955.0,0.04544]
[1733651924472,0.10067404,98958.0,98948.0,0.045444]
[1733651924473,0.045444,98949.0,98948.0,0.045444]
[1733651924772,0.406244,98949.0,98948.0,0.05681323]
[1733651925471,0.045444,98949.0,98948.0,0.05681323]
[1733651925669,0.406244,98949.0,98948.0,0.05681323]
[1733651926067,0.407244,98949.0,98948.0,0.05781323]
[1733651927172,0.411244,98949.0,98948.0,0.05781323]
[1733651927371,0.46036263,98949.0,98948.0,0.05781323]
[1733651927574,0.46036263,98949.0,98940.0,0.00039766]
[1733651927877,0.04911863,98948.0,98941.0,0.01136899]
[1733651928076,0.04911863,98948.0,98947.0,0.045444]
[1733651929075,0.05111863,98948.0,98947.0,0.045444]
[1733651929777,0.05111863,98948.0,98947.0,0.046444]
[1733651930076,0.05111824,98948.0,98947.0,0.046444]
[1733651930279,0.05511824,98948.0,98947.0,0.046444]
[1733651932867,0.05511824,98948.0,98947.0,0.04684212]
[1733651933074,0.05511824,98948.0,98947.0,0.046444]
[1733651933468,0.05511824,98948.0,98947.0,0.0468422]
[1733651933677,0.05511824,98948.0,98947.0,0.046444]
[1733651933884,0.05511824,98948.0,98947.0,0.0468422]
[1733651934077,0.05511824,98948.0,98947.0,0.046444]
[1733651934276,0.05511824,98948.0,98947.0,0.0468422]
[1733651934472,0.006,98948.0,98947.0,0.0468422]
[1733651934668,0.006,98948.0,98947.0,0.046444]
[1733651935779,0.006,98948.0,98947.0,0.06278213]
[1733651936081,0.006,98948.0,98947.0,0.06593977]
[1733651936474,0.006,98948.0,98947.0,0.2473401]
[1733651936669,0.006,98948.0,98947.0,0.06593977]
[1733651937577,0.006,98948.0,98947.0,0.07099177]
[1733651937783,0.006,98948.0,98947.0,0.25251032]
[1733651938390,0.09024306,98953.0,98951.0,0.045442]
[1733651938582,0.09024306,98955.0,98954.0,0.045441]
[1733651938877,0.00011878,98958.0,98957.0,0.04544]
[1733651939080,0.00011878,98958.0,98957.0,0.05996492]
[1733651940477,0.09237516,98958.0,98957.0,0.06096492]
[1733651940681,0.00611878,98958.0,98957.0,0.24248895]
[1733651941481,0.00611878,98958.0,98957.0,0.05780607]
[1733651941780,0.00611878,98958.0,98957.0,0.06096331]
[1733651941980,0.00611878,98958.0,98957.0,0.24248734]
[1733651942478,0.00611878,98958.0,98957.0,0.06096331]
[1733651943671,0.00611878,98958.0,98957.0,0.06815841]
[1733651943876,0.00611878,98958.0,98957.0,0.07131566]
[1733651947085,0.00611878,98958.0,98957.0,0.07131568]
[1733651947975,7.8e-07,98958.0,98957.0,0.07131568]
[1733651948183,0.00992794,98975.0,98972.0,0.045433]
[1733651948184,0.15027752,98975.0,98972.0,0.045433]
[1733651948482,0.15025648,98976.0,98974.0,0.3608]
[1733651948680,0.15025648,98978.0,98975.0,0.01452337]
[1733651948888,0.15025648,98978.0,98977.0,0.045431]
[1733651949084,0.15025648,98980.0,98977.0,0.05991437]
[1733651949385,0.15025648,98982.0,98978.0,0.01452337]
[1733651949682,8.69e-05,98990.0,98989.0,0.045425]
[1733651949893,8.69e-05,98990.0,98989.0,0.05994837]
[1733651950386,8.69e-05,98990.0,98989.0,0.045425]
[1733651950695,8.69e-05,98990.0,98989.0,0.06034277]
[1733651950885,0.0455119,98990.0,98989.0,0.01591777]
[1733651951085,0.0455119,98990.0,98989.0,0.01752047]
[1733651951281,0.19576838,98990.0,98989.0,0.01752047]
[1733651951481,0.0455119,98990.0,98989.0,0.01752047]
[1733651951884,8.69e-05,98990.0,98989.0,0.01752047]
[1733651952082,8.69e-05,98990.0,98989.0,0.06294547]
[1733651953790,0.0455119,98990.0,98989.0,0.01752047]
[1733651954786,0.0455119,98990.0,98989.0,0.06294547]
[1733651955091,0.0455119,98990.0,98989.0,0.05663222]
[1733651955892,0.0455119,98990.0,98989.0,0.01120722]
[1733651956196,0.0455119,98990.0,98976.0,0.00010595]
[1733651956197,0.045431,98977.0,98976.0,0.04553695]
[1733651957491,0.0634,98978.0,98977.0,0.045431]
[1733651957993,0.10883,98978.0,98977.0,0.045431]
[1733651958492,0.25887775,98978.0,98977.0,0.045431]
[1733651959193,0.13953,98978.0,98977.0,0.045431]
[1733651959492,0.19063464,98978.0,98977.0,0.045431]
[1733651959696,0.19063464,98978.0,98977.0,0.046431]
[1733651963098,0.19063464,98978.0,98977.0,0.05274528]
[1733651963996,0.19063464,98978.0,98977.0,0.05274529]
[1733651965689,0.19063464,98978.0,98977.0,0.00731429]
[1733651965690,0.19063467,98978.0,98977.0,0.00731429]
[1733651965892,0.35823174,98978.0,98977.0,0.00731429]
[1733651966189,0.35823174,98978.0,98971.0,0.00039841]
[1733651966190,0.045432,98974.0,98971.0,0.00039841]
[1733651966495,0.31276981,98978.0,98965.0,0.045436]
[1733651966496,0.21666981,98973.0,98965.0,0.045436]
[1733651966696,0.045436,98966.0,98965.0,0.045436]
[1733651966893,0.26145581,98966.0,98965.0,0.045436]
[1733651967088,0.26145581,98966.0,98965.0,0.0455347]
[1733651967089,0.21601981,98966.0,98965.0,0.0455347]
[1733651967393,0.04910467,98966.0,98965.0,0.0455347]
[1733651968087,0.04910467,98966.0,98965.0,0.04869223]
[1733651969002,0.05010467,98966.0,98965.0,0.04869223]
[1733651970599,0.05010846,98966.0,98965.0,0.04869208]
[1733651970893,0.05010846,98966.0,98965.0,0.0455347]
[1733651971101,0.05010846,98966.0,98965.0,0.04869208]
[1733651972496,0.001,98966.0,98965.0,0.04869208]
[1733651972704,0.001,98966.0,98965.0,0.14869208]
[1733651973297,0.001,98966.0,98965.0,0.10325608]
[1733651973601,0.09554477,98966.0,98965.0,0.10325608]
[1733651973989,0.09554477,98966.0,98965.0,0.14869208]
[1733651974297,0.09554477,98966.0,98965.0,0.15500697]
[1733651975103,0.27595553,98966.0,98965.0,0.10957097]
[1733651975292,0.09554477,98966.0,98965.0,0.10957097]
[1733651975691,0.09554477,98966.0,98965.0,0.10325608]
[1733651975893,0.27594056,98966.0,98965.0,0.10957154]
[1733651976104,0.09554477,98966.0,98965.0,0.10957154]
[1733651976309,0.09554477,98966.0,98965.0,0.11462372]
[1733651976999,0.09554477,98966.0,98963.0,0.00151568]
[1733651977000,0.045437,98964.0,98963.0,0.00151568]
[1733651977196,0.09454577,98964.0,98963.0,0.00151568]
[1733651977397,0.26016616,98964.0,98963.0,0.00151568]
[1733651977595,0.09454577,98964.0,98963.0,0.00151568]
[1733651977993,0.2748769,98964.0,98963.0,0.00151568]
[1733651978605,0.09554577,98964.0,98963.0,0.00151568]
[1733651979101,0.045441,98954.0,98953.0,0.045441]
[1733651980012,0.09455554,98954.0,98953.0,0.04594555]
[1733651980201,0.09455554,98954.0,98953.0,0.04554722]
[1733651984598,0.09455619,98954.0,98953.0,0.04554722]
[1733651985106,0.09455619,98954.0,98953.0,0.05186286]
[1733651985701,0.09455619,98954.0,98953.0,0.04554722]
[1733651985907,0.09455619,98954.0,98953.0,0.05186285]
[1733651987102,0.09455619,98954.0,98953.0,0.05691535]
[1733651987307,0.04911519,98954.0,98953.0,0.05691535]
[1733651987612,0.15034567,98956.0,98955.0,0.045441]
[1733651987905,0.15034567,98956.0,98955.0,0.05680913]
[1733651988108,0.15034567,98956.0,98955.0,0.01136813]
[1733651988708,0.19578567,98956.0,98955.0,0.01136813]
[1733651988912,0.19678567,98956.0,98955.0,0.01136813]
[1733651989102,0.19678567,98956.0,98955.0,0.01452594]
[1733651990502,0.04644,98956.0,98955.0,0.01452594]
[1733651990703,0.19683349,98956.0,98955.0,0.01452594]
[1733651990907,0.04644,98956.0,98955.0,0.01452594]
[1733651991216,0.45635511,98956.0,98955.0,0.00821031]
[1733651991400,0.45635511,98956.0,98952.0,0.0399]
[1733651991401,0.68072442,98956.0,98952.0,0.0399]
[1733651991605,0.045442,98953.0,98952.0,0.0399]
[1733651992004,0.25432642,98953.0,98952.0,0.0399]
[1733651994920,0.61512642,98953.0,98952.0,0.0399]
[1733651997002,0.04545,98934.0,98933.0,0.04584989]
[1733651997208,0.04545,98934.0,98933.0,0.05216656]
[1733651998110,0.04545,98934.0,98933.0,0.05916656]
[1733651998310,0.04545,98934.0,98933.0,0.05916596]
[1733651998909,0.04545,98934.0,98933.0,0.05876767]
[1733652000808,0.04545,98934.0,98933.0,0.01331667]
[1733652001011,0.04545,98934.0,98933.0,0.007]
[1733652001207,0.04545,98934.0,98933.0,0.01331667]
[1733652001607,0.04545,98934.0,98933.0,0.01837001]
[1733652002211,0.19573954,98934.0,98933.0,0.01837001]
[1733652002612,0.04545,98934.0,98933.0,0.01837001]
[1733652003613,0.04545,98934.0,98933.0,0.02152857]
[1733652006914,0.04545,98934.0,98933.0,0.03414656]
[1733652007220,0.04545,98934.0,98933.0,0.007]
[1733652007414,0.04545,98934.0,98933.0,0.02152911]
[1733652008413,0.04545,98934.0,98933.0,0.02192763]
[1733652008719,0.04545,98934.0,98933.0,0.02152911]
[1733652009313,0.04545,98934.0,98933.0,0.0219273]
[1733652009715,0.04545,98934.0,98933.0,0.02152911]
[1733652010321,0.3608,98935.0,98934.0,0.04545]
[1733652010622,0.40625,98935.0,98934.0,0.07260019]
[1733652011227,0.52645131,98935.0,98934.0,0.07260019]
[1733652011415,0.40625,98935.0,98934.0,0.07260019]
[1733652011820,0.40625,98935.0,98934.0,0.07660019]
[1733652012021,0.3608,98943.0,98942.0,0.045447]
[1733652012225,0.48102342,98943.0,98942.0,0.07259719]
[1733652012419,0.3608,98943.0,98942.0,0.07259719]
[1733652012822,0.16566542,98952.0,98942.0,0.38795019]
[1733652013126,0.16566542,98952.0,98950.0,0.045443]
[1733652013324,0.15025637,98958.0,98951.0,0.04462911]
[1733652013325,0.12022342,98953.0,98951.0,0.04462911]
[1733652013530,0.12022342,98953.0,98952.0,0.07259926]
[1733652013531,0.12024158,98953.0,98952.0,0.07259926]
[1733652014033,0.12024158,98953.0,98952.0,0.07259569]
[1733652015331,0.12024158,98953.0,98952.0,0.10509569]
[1733652016016,0.12024158,98956.0,98955.0,0.045441]
[1733652016216,0.3608,98962.0,98955.0,0.07259469]
[1733652016217,0.12024158,98957.0,98955.0,0.07259469]
[1733652016423,0.48104158,98962.0,98956.0,0.02715369]
[1733652016726,0.48104158,98962.0,98960.0,0.045438]
[1733652016925,0.48104158,98962.0,98961.0,0.02715369]
[1733652017121,0.3608,98962.0,98961.0,0.02715369]
[1733652017316,0.3608,98962.0,98961.0,0.02715252]
[1733652017530,0.48098806,98962.0,98961.0,0.02715252]
[1733652017829,0.40991044,98962.0,98952.0,0.0968308]
[1733652018030,0.15023725,98958.0,98957.0,0.04544]
[1733652018424,0.15023725,98959.0,98957.0,0.04544]